{"text_format":"3","workbook":"xlsx","n_sheets":3,"sheets":["Ημερήσιο πρόγραμμα","Προγραμματισμός συμβάντων","Χρονικά διαστήματα"],"not_rendered":{"images":1,"defined_names":21},"read":"whole","date_system":"1900"}

{"sheet":"Ημερήσιο πρόγραμμα","index":0,"n_rows":75,"n_cols":13,"rows_kept":75,"merged":[[1,1,5,2],[2,12,4,12],[3,7,4,7],[5,12,7,12],[6,1,8,2],[8,12,10,12],[9,7,10,7],[10,1,10,2],[11,12,13,12],[14,12,16,12],[15,7,16,7],[17,12,19,12],[18,1,18,2],[20,12,22,12],[21,7,22,7],[23,12,25,12],[25,1,25,2],[26,7,27,7],[26,12,28,12],[29,12,31,12],[31,7,32,7],[32,12,34,12]]}
[null,"Ημερήσιο πρόγραμμα"]
[null,{"$f":"IFERROR(DAY(ΤιμήΗμερομηνίας),\"\")","v":""},null,null,"Ώρα",{"$f":"IFERROR(UPPER(TEXT(DATE(ΈτοςΑναφοράς,ΑριθμόςΜήνα,ΗμέραΑναφοράς),\"η/μ/εεεε\")),\"\")","v":""},null,"Η ΕΒΔΟΜΑΔΑ ΜΕ ΜΙΑ ΜΑΤΙΑ",{"$nulls":3},"ΣΗΜΕΙΩΣΕΙΣ/ΛΙΣΤΑ ΕΚΚΡΕΜΩΝ ΕΡΓΑΣΙΩΝ"]
[{"$nulls":4},{"$f":"'Χρονικά διαστήματα'!E3","v":"06:00:00"},{"$f":"IFERROR(INDEX(Προγραμματισμός_συμβάντων[],MATCH(DATEVALUE(ΤιμήΗμερομηνίας)&Ημερήσιο_πρόγραμμα[[#This Row],[Ώρα]],ΑναζήτησηΗμερομηνίαςΚαιΏρας,0),3),\"\")","v":""},null,{"$f":"IFERROR(TEXT(DATEVALUE(ΤιμήΗμερομηνίας)+1,\"ηηηη\"),\"\")","v":""},{"$f":"IFERROR(INDEX(Προγραμματισμός_συμβάντων[],MATCH($H$6&\"|\"&ROW(A1),Προγραμματισμός_συμβάντων[ΜΟΝΑΔΙΚΗ ΤΙΜΗ (ΥΠΟΛΟΓΙΣΜΕΝΗ)],0),2),\"\")","v":""},{"$f":"IFERROR(INDEX(Προγραμματισμός_συμβάντων[],MATCH($H$6&\"|\"&ROW(A1),Προγραμματισμός_συμβάντων[ΜΟΝΑΔΙΚΗ ΤΙΜΗ (ΥΠΟΛΟΓΙΣΜΕΝΗ)],0),3),\"\")","v":""},null,null,"Να πάρω τα ρούχα από το στεγνοκαθαριστήριο"]
[{"$nulls":4},{"$f":"'Χρονικά διαστήματα'!E4","v":"06:15:00"},{"$f":"IFERROR(INDEX(Προγραμματισμός_συμβάντων[],MATCH(DATEVALUE(ΤιμήΗμερομηνίας)&Ημερήσιο_πρόγραμμα[[#This Row],[Ώρα]],ΑναζήτησηΗμερομηνίαςΚαιΏρας,0),3),\"\")","v":""},null,{"$f":"IFERROR(TEXT(DATEVALUE(ΤιμήΗμερομηνίας)+1,\"η\"),\"\")","v":""},{"$f":"IFERROR(INDEX(Προγραμματισμός_συμβάντων[],MATCH($H$6&\"|\"&ROW(A2),Προγραμματισμός_συμβάντων[ΜΟΝΑΔΙΚΗ ΤΙΜΗ (ΥΠΟΛΟΓΙΣΜΕΝΗ)],0),2),\"\")","v":""},{"$f":"IFERROR(INDEX(Προγραμματισμός_συμβάντων[],MATCH($H$6&\"|\"&ROW(A2),Προγραμματισμός_συμβάντων[ΜΟΝΑΔΙΚΗ ΤΙΜΗ (ΥΠΟΛΟΓΙΣΜΕΝΗ)],0),3),\"\")","v":""}]
[{"$nulls":4},{"$f":"'Χρονικά διαστήματα'!E5","v":"06:30:00"},{"$f":"IFERROR(INDEX(Προγραμματισμός_συμβάντων[],MATCH(DATEVALUE(ΤιμήΗμερομηνίας)&Ημερήσιο_πρόγραμμα[[#This Row],[Ώρα]],ΑναζήτησηΗμερομηνίαςΚαιΏρας,0),3),\"\")","v":""},null,null,{"$f":"IFERROR(INDEX(Προγραμματισμός_συμβάντων[],MATCH($H$6&\"|\"&ROW(A3),Προγραμματισμός_συμβάντων[ΜΟΝΑΔΙΚΗ ΤΙΜΗ (ΥΠΟΛΟΓΙΣΜΕΝΗ)],0),2),\"\")","v":""},{"$f":"IFERROR(INDEX(Προγραμματισμός_συμβάντων[],MATCH($H$6&\"|\"&ROW(A3),Προγραμματισμός_συμβάντων[ΜΟΝΑΔΙΚΗ ΤΙΜΗ (ΥΠΟΛΟΓΙΣΜΕΝΗ)],0),3),\"\")","v":""}]
[{"$nulls":4},{"$f":"'Χρονικά διαστήματα'!E6","v":"06:45:00"},{"$f":"IFERROR(INDEX(Προγραμματισμός_συμβάντων[],MATCH(DATEVALUE(ΤιμήΗμερομηνίας)&Ημερήσιο_πρόγραμμα[[#This Row],[Ώρα]],ΑναζήτησηΗμερομηνίαςΚαιΏρας,0),3),\"\")","v":""},null,{"$f":"IFERROR(ΤιμήΗμερομηνίας+1,\"\")","v":""},{"$f":"IFERROR(INDEX(Προγραμματισμός_συμβάντων[],MATCH($H$6&\"|\"&ROW(A4),Προγραμματισμός_συμβάντων[ΜΟΝΑΔΙΚΗ ΤΙΜΗ (ΥΠΟΛΟΓΙΣΜΕΝΗ)],0),2),\"\")","v":""},{"$f":"IFERROR(INDEX(Προγραμματισμός_συμβάντων[],MATCH($H$6&\"|\"&ROW(A4),Προγραμματισμός_συμβάντων[ΜΟΝΑΔΙΚΗ ΤΙΜΗ (ΥΠΟΛΟΓΙΣΜΕΝΗ)],0),3),\"\")","v":""},null,null,"Να τηλεφωνήσω στην εταιρεία συνδρομητικής τηλεόρασης"]
[null,{"$f":"IFERROR(TEXT(ΤιμήΗμερομηνίας,\"ηηηη\"),\"\")","v":""},null,null,{"$f":"'Χρονικά διαστήματα'!E7","v":"07:00:00"},{"$f":"IFERROR(INDEX(Προγραμματισμός_συμβάντων[],MATCH(DATEVALUE(ΤιμήΗμερομηνίας)&Ημερήσιο_πρόγραμμα[[#This Row],[Ώρα]],ΑναζήτησηΗμερομηνίαςΚαιΏρας,0),3),\"\")","v":""},null,null,{"$f":"IFERROR(INDEX(Προγραμματισμός_συμβάντων[],MATCH($H$6&\"|\"&ROW(A5),Προγραμματισμός_συμβάντων[ΜΟΝΑΔΙΚΗ ΤΙΜΗ (ΥΠΟΛΟΓΙΣΜΕΝΗ)],0),2),\"\")","v":""},{"$f":"IFERROR(INDEX(Προγραμματισμός_συμβάντων[],MATCH($H$6&\"|\"&ROW(A5),Προγραμματισμός_συμβάντων[ΜΟΝΑΔΙΚΗ ΤΙΜΗ (ΥΠΟΛΟΓΙΣΜΕΝΗ)],0),3),\"\")","v":""}]
[{"$nulls":4},{"$f":"'Χρονικά διαστήματα'!E8","v":"07:15:00"},{"$f":"IFERROR(INDEX(Προγραμματισμός_συμβάντων[],MATCH(DATEVALUE(ΤιμήΗμερομηνίας)&Ημερήσιο_πρόγραμμα[[#This Row],[Ώρα]],ΑναζήτησηΗμερομηνίαςΚαιΏρας,0),3),\"\")","v":""},null,null,{"$f":"IFERROR(INDEX(Προγραμματισμός_συμβάντων[],MATCH($H$6&\"|\"&ROW(A6),Προγραμματισμός_συμβάντων[ΜΟΝΑΔΙΚΗ ΤΙΜΗ (ΥΠΟΛΟΓΙΣΜΕΝΗ)],0),2),\"\")","v":""},{"$f":"IFERROR(INDEX(Προγραμματισμός_συμβάντων[],MATCH($H$6&\"|\"&ROW(A6),Προγραμματισμός_συμβάντων[ΜΟΝΑΔΙΚΗ ΤΙΜΗ (ΥΠΟΛΟΓΙΣΜΕΝΗ)],0),3),\"\")","v":""}]
[{"$nulls":4},{"$f":"'Χρονικά διαστήματα'!E9","v":"07:30:00"},{"$f":"IFERROR(INDEX(Προγραμματισμός_συμβάντων[],MATCH(DATEVALUE(ΤιμήΗμερομηνίας)&Ημερήσιο_πρόγραμμα[[#This Row],[Ώρα]],ΑναζήτησηΗμερομηνίαςΚαιΏρας,0),3),\"\")","v":""},null,{"$f":"IFERROR(TEXT(DATEVALUE(ΤιμήΗμερομηνίας)+2,\"ηηηη\"),\"\")","v":""},{"$f":"IFERROR(INDEX(Προγραμματισμός_συμβάντων[],MATCH($H$12&\"|\"&ROW(A1),Προγραμματισμός_συμβάντων[ΜΟΝΑΔΙΚΗ ΤΙΜΗ (ΥΠΟΛΟΓΙΣΜΕΝΗ)],0),2),\"\")","v":""},{"$f":"IFERROR(INDEX(Προγραμματισμός_συμβάντων[],MATCH($H$12&\"|\"&ROW(A1),Προγραμματισμός_συμβάντων[ΜΟΝΑΔΙΚΗ ΤΙΜΗ (ΥΠΟΛΟΓΙΣΜΕΝΗ)],0),3),\"\")","v":""}]
[{"$nulls":4},{"$f":"'Χρονικά διαστήματα'!E10","v":"07:45:00"},{"$f":"IFERROR(INDEX(Προγραμματισμός_συμβάντων[],MATCH(DATEVALUE(ΤιμήΗμερομηνίας)&Ημερήσιο_πρόγραμμα[[#This Row],[Ώρα]],ΑναζήτησηΗμερομηνίαςΚαιΏρας,0),3),\"\")","v":""},null,{"$f":"IFERROR(TEXT(DATEVALUE(ΤιμήΗμερομηνίας)+2,\"η\"),\"\")","v":""},{"$f":"IFERROR(INDEX(Προγραμματισμός_συμβάντων[],MATCH($H$12&\"|\"&ROW(A2),Προγραμματισμός_συμβάντων[ΜΟΝΑΔΙΚΗ ΤΙΜΗ (ΥΠΟΛΟΓΙΣΜΕΝΗ)],0),2),\"\")","v":""},{"$f":"IFERROR(INDEX(Προγραμματισμός_συμβάντων[],MATCH($H$12&\"|\"&ROW(A2),Προγραμματισμός_συμβάντων[ΜΟΝΑΔΙΚΗ ΤΙΜΗ (ΥΠΟΛΟΓΙΣΜΕΝΗ)],0),3),\"\")","v":""}]
[null,"ΠΡΟΒΟΛΗ ΠΡΟΓΡΑΜΜΑΤΟΣ",null,null,{"$f":"'Χρονικά διαστήματα'!E11","v":"08:00:00"},{"$f":"IFERROR(INDEX(Προγραμματισμός_συμβάντων[],MATCH(DATEVALUE(ΤιμήΗμερομηνίας)&Ημερήσιο_πρόγραμμα[[#This Row],[Ώρα]],ΑναζήτησηΗμερομηνίαςΚαιΏρας,0),3),\"\")","v":""},null,null,{"$f":"IFERROR(INDEX(Προγραμματισμός_συμβάντων[],MATCH($H$12&\"|\"&ROW(A3),Προγραμματισμός_συμβάντων[ΜΟΝΑΔΙΚΗ ΤΙΜΗ (ΥΠΟΛΟΓΙΣΜΕΝΗ)],0),2),\"\")","v":""},{"$f":"IFERROR(INDEX(Προγραμματισμός_συμβάντων[],MATCH($H$12&\"|\"&ROW(A3),Προγραμματισμός_συμβάντων[ΜΟΝΑΔΙΚΗ ΤΙΜΗ (ΥΠΟΛΟΓΙΣΜΕΝΗ)],0),3),\"\")","v":""}]
[{"$nulls":4},{"$f":"'Χρονικά διαστήματα'!E12","v":"08:15:00"},{"$f":"IFERROR(INDEX(Προγραμματισμός_συμβάντων[],MATCH(DATEVALUE(ΤιμήΗμερομηνίας)&Ημερήσιο_πρόγραμμα[[#This Row],[Ώρα]],ΑναζήτησηΗμερομηνίαςΚαιΏρας,0),3),\"\")","v":""},null,{"$f":"IFERROR(ΤιμήΗμερομηνίας+2,\"\")","v":""},{"$f":"IFERROR(INDEX(Προγραμματισμός_συμβάντων[],MATCH($H$12&\"|\"&ROW(A4),Προγραμματισμός_συμβάντων[ΜΟΝΑΔΙΚΗ ΤΙΜΗ (ΥΠΟΛΟΓΙΣΜΕΝΗ)],0),2),\"\")","v":""},{"$f":"IFERROR(INDEX(Προγραμματισμός_συμβάντων[],MATCH($H$12&\"|\"&ROW(A4),Προγραμματισμός_συμβάντων[ΜΟΝΑΔΙΚΗ ΤΙΜΗ (ΥΠΟΛΟΓΙΣΜΕΝΗ)],0),3),\"\")","v":""}]
[null,"Έτος",null,null,{"$f":"'Χρονικά διαστήματα'!E13","v":"08:30:00"},{"$f":"IFERROR(INDEX(Προγραμματισμός_συμβάντων[],MATCH(DATEVALUE(ΤιμήΗμερομηνίας)&Ημερήσιο_πρόγραμμα[[#This Row],[Ώρα]],ΑναζήτησηΗμερομηνίαςΚαιΏρας,0),3),\"\")","v":""},null,null,{"$f":"IFERROR(INDEX(Προγραμματισμός_συμβάντων[],MATCH($H$12&\"|\"&ROW(A5),Προγραμματισμός_συμβάντων[ΜΟΝΑΔΙΚΗ ΤΙΜΗ (ΥΠΟΛΟΓΙΣΜΕΝΗ)],0),2),\"\")","v":""},{"$f":"IFERROR(INDEX(Προγραμματισμός_συμβάντων[],MATCH($H$12&\"|\"&ROW(A5),Προγραμματισμός_συμβάντων[ΜΟΝΑΔΙΚΗ ΤΙΜΗ (ΥΠΟΛΟΓΙΣΜΕΝΗ)],0),3),\"\")","v":""}]
[{"$nulls":4},{"$f":"'Χρονικά διαστήματα'!E14","v":"08:45:00"},{"$f":"IFERROR(INDEX(Προγραμματισμός_συμβάντων[],MATCH(DATEVALUE(ΤιμήΗμερομηνίας)&Ημερήσιο_πρόγραμμα[[#This Row],[Ώρα]],ΑναζήτησηΗμερομηνίαςΚαιΏρας,0),3),\"\")","v":""},null,null,{"$f":"IFERROR(INDEX(Προγραμματισμός_συμβάντων[],MATCH($H$12&\"|\"&ROW(A6),Προγραμματισμός_συμβάντων[ΜΟΝΑΔΙΚΗ ΤΙΜΗ (ΥΠΟΛΟΓΙΣΜΕΝΗ)],0),2),\"\")","v":""},{"$f":"IFERROR(INDEX(Προγραμματισμός_συμβάντων[],MATCH($H$12&\"|\"&ROW(A6),Προγραμματισμός_συμβάντων[ΜΟΝΑΔΙΚΗ ΤΙΜΗ (ΥΠΟΛΟΓΙΣΜΕΝΗ)],0),3),\"\")","v":""}]
[null,"Μήνας",null,null,{"$f":"'Χρονικά διαστήματα'!E15","v":"09:00:00"},{"$f":"IFERROR(INDEX(Προγραμματισμός_συμβάντων[],MATCH(DATEVALUE(ΤιμήΗμερομηνίας)&Ημερήσιο_πρόγραμμα[[#This Row],[Ώρα]],ΑναζήτησηΗμερομηνίαςΚαιΏρας,0),3),\"\")","v":""},null,{"$f":"IFERROR(TEXT(DATEVALUE(ΤιμήΗμερομηνίας)+3,\"ηηηη\"),\"\")","v":""},{"$f":"IFERROR(INDEX(Προγραμματισμός_συμβάντων[],MATCH($H$18&\"|\"&ROW(A1),Προγραμματισμός_συμβάντων[ΜΟΝΑΔΙΚΗ ΤΙΜΗ (ΥΠΟΛΟΓΙΣΜΕΝΗ)],0),2),\"\")","v":""},{"$f":"IFERROR(INDEX(Προγραμματισμός_συμβάντων[],MATCH($H$18&\"|\"&ROW(A1),Προγραμματισμός_συμβάντων[ΜΟΝΑΔΙΚΗ ΤΙΜΗ (ΥΠΟΛΟΓΙΣΜΕΝΗ)],0),3),\"\")","v":""}]
[{"$nulls":4},{"$f":"'Χρονικά διαστήματα'!E16","v":"09:15:00"},{"$f":"IFERROR(INDEX(Προγραμματισμός_συμβάντων[],MATCH(DATEVALUE(ΤιμήΗμερομηνίας)&Ημερήσιο_πρόγραμμα[[#This Row],[Ώρα]],ΑναζήτησηΗμερομηνίαςΚαιΏρας,0),3),\"\")","v":""},null,{"$f":"IFERROR(TEXT(DATEVALUE(ΤιμήΗμερομηνίας)+3,\"η\"),\"\")","v":""},{"$f":"IFERROR(INDEX(Προγραμματισμός_συμβάντων[],MATCH($H$18&\"|\"&ROW(A2),Προγραμματισμός_συμβάντων[ΜΟΝΑΔΙΚΗ ΤΙΜΗ (ΥΠΟΛΟΓΙΣΜΕΝΗ)],0),2),\"\")","v":""},{"$f":"IFERROR(INDEX(Προγραμματισμός_συμβάντων[],MATCH($H$18&\"|\"&ROW(A2),Προγραμματισμός_συμβάντων[ΜΟΝΑΔΙΚΗ ΤΙΜΗ (ΥΠΟΛΟΓΙΣΜΕΝΗ)],0),3),\"\")","v":""}]
[null,"Ημέρα",null,null,{"$f":"'Χρονικά διαστήματα'!E17","v":"09:30:00"},{"$f":"IFERROR(INDEX(Προγραμματισμός_συμβάντων[],MATCH(DATEVALUE(ΤιμήΗμερομηνίας)&Ημερήσιο_πρόγραμμα[[#This Row],[Ώρα]],ΑναζήτησηΗμερομηνίαςΚαιΏρας,0),3),\"\")","v":""},null,null,{"$f":"IFERROR(INDEX(Προγραμματισμός_συμβάντων[],MATCH($H$18&\"|\"&ROW(A3),Προγραμματισμός_συμβάντων[ΜΟΝΑΔΙΚΗ ΤΙΜΗ (ΥΠΟΛΟΓΙΣΜΕΝΗ)],0),2),\"\")","v":""},{"$f":"IFERROR(INDEX(Προγραμματισμός_συμβάντων[],MATCH($H$18&\"|\"&ROW(A3),Προγραμματισμός_συμβάντων[ΜΟΝΑΔΙΚΗ ΤΙΜΗ (ΥΠΟΛΟΓΙΣΜΕΝΗ)],0),3),\"\")","v":""}]
[{"$nulls":4},{"$f":"'Χρονικά διαστήματα'!E18","v":"09:45:00"},{"$f":"IFERROR(INDEX(Προγραμματισμός_συμβάντων[],MATCH(DATEVALUE(ΤιμήΗμερομηνίας)&Ημερήσιο_πρόγραμμα[[#This Row],[Ώρα]],ΑναζήτησηΗμερομηνίαςΚαιΏρας,0),3),\"\")","v":""},null,{"$f":"IFERROR(ΤιμήΗμερομηνίας+3,\"\")","v":""},{"$f":"IFERROR(INDEX(Προγραμματισμός_συμβάντων[],MATCH($H$18&\"|\"&ROW(A4),Προγραμματισμός_συμβάντων[ΜΟΝΑΔΙΚΗ ΤΙΜΗ (ΥΠΟΛΟΓΙΣΜΕΝΗ)],0),2),\"\")","v":""},{"$f":"IFERROR(INDEX(Προγραμματισμός_συμβάντων[],MATCH($H$18&\"|\"&ROW(A4),Προγραμματισμός_συμβάντων[ΜΟΝΑΔΙΚΗ ΤΙΜΗ (ΥΠΟΛΟΓΙΣΜΕΝΗ)],0),3),\"\")","v":""}]
[null,"ΕΠΕΞΕΡΓΑΣΙΑ ΠΡΟΓΡΑΜΜΑΤΟΣ",null,null,{"$f":"'Χρονικά διαστήματα'!E19","v":"10:00:00"},{"$f":"IFERROR(INDEX(Προγραμματισμός_συμβάντων[],MATCH(DATEVALUE(ΤιμήΗμερομηνίας)&Ημερήσιο_πρόγραμμα[[#This Row],[Ώρα]],ΑναζήτησηΗμερομηνίαςΚαιΏρας,0),3),\"\")","v":""},null,null,{"$f":"IFERROR(INDEX(Προγραμματισμός_συμβάντων[],MATCH($H$18&\"|\"&ROW(A5),Προγραμματισμός_συμβάντων[ΜΟΝΑΔΙΚΗ ΤΙΜΗ (ΥΠΟΛΟΓΙΣΜΕΝΗ)],0),2),\"\")","v":""},{"$f":"IFERROR(INDEX(Προγραμματισμός_συμβάντων[],MATCH($H$18&\"|\"&ROW(A5),Προγραμματισμός_συμβάντων[ΜΟΝΑΔΙΚΗ ΤΙΜΗ (ΥΠΟΛΟΓΙΣΜΕΝΗ)],0),3),\"\")","v":""}]
[{"$nulls":4},{"$f":"'Χρονικά διαστήματα'!E20","v":"10:15:00"},{"$f":"IFERROR(INDEX(Προγραμματισμός_συμβάντων[],MATCH(DATEVALUE(ΤιμήΗμερομηνίας)&Ημερήσιο_πρόγραμμα[[#This Row],[Ώρα]],ΑναζήτησηΗμερομηνίαςΚαιΏρας,0),3),\"\")","v":""},null,null,{"$f":"IFERROR(INDEX(Προγραμματισμός_συμβάντων[],MATCH($H$18&\"|\"&ROW(A6),Προγραμματισμός_συμβάντων[ΜΟΝΑΔΙΚΗ ΤΙΜΗ (ΥΠΟΛΟΓΙΣΜΕΝΗ)],0),2),\"\")","v":""},{"$f":"IFERROR(INDEX(Προγραμματισμός_συμβάντων[],MATCH($H$18&\"|\"&ROW(A6),Προγραμματισμός_συμβάντων[ΜΟΝΑΔΙΚΗ ΤΙΜΗ (ΥΠΟΛΟΓΙΣΜΕΝΗ)],0),3),\"\")","v":""}]
[null,"Επιλέξτε να γίνει επεξεργασία των χρονικών διαστημάτων",null,null,{"$f":"'Χρονικά διαστήματα'!E21","v":"10:30:00"},{"$f":"IFERROR(INDEX(Προγραμματισμός_συμβάντων[],MATCH(DATEVALUE(ΤιμήΗμερομηνίας)&Ημερήσιο_πρόγραμμα[[#This Row],[Ώρα]],ΑναζήτησηΗμερομηνίαςΚαιΏρας,0),3),\"\")","v":""},null,{"$f":"IFERROR(TEXT(DATEVALUE(ΤιμήΗμερομηνίας)+4,\"ηηηη\"),\"\")","v":""},{"$f":"IFERROR(INDEX(Προγραμματισμός_συμβάντων[],MATCH($H$24&\"|\"&ROW(A1),Προγραμματισμός_συμβάντων[ΜΟΝΑΔΙΚΗ ΤΙΜΗ (ΥΠΟΛΟΓΙΣΜΕΝΗ)],0),2),\"\")","v":""},{"$f":"IFERROR(INDEX(Προγραμματισμός_συμβάντων[],MATCH($H$24&\"|\"&ROW(A1),Προγραμματισμός_συμβάντων[ΜΟΝΑΔΙΚΗ ΤΙΜΗ (ΥΠΟΛΟΓΙΣΜΕΝΗ)],0),3),\"\")","v":""}]
[{"$nulls":4},{"$f":"'Χρονικά διαστήματα'!E22","v":"10:45:00"},{"$f":"IFERROR(INDEX(Προγραμματισμός_συμβάντων[],MATCH(DATEVALUE(ΤιμήΗμερομηνίας)&Ημερήσιο_πρόγραμμα[[#This Row],[Ώρα]],ΑναζήτησηΗμερομηνίαςΚαιΏρας,0),3),\"\")","v":""},null,{"$f":"IFERROR(TEXT(DATEVALUE(ΤιμήΗμερομηνίας)+4,\"η\"),\"\")","v":""},{"$f":"IFERROR(INDEX(Προγραμματισμός_συμβάντων[],MATCH($H$24&\"|\"&ROW(A2),Προγραμματισμός_συμβάντων[ΜΟΝΑΔΙΚΗ ΤΙΜΗ (ΥΠΟΛΟΓΙΣΜΕΝΗ)],0),2),\"\")","v":""},{"$f":"IFERROR(INDEX(Προγραμματισμός_συμβάντων[],MATCH($H$24&\"|\"&ROW(A2),Προγραμματισμός_συμβάντων[ΜΟΝΑΔΙΚΗ ΤΙΜΗ (ΥΠΟΛΟΓΙΣΜΕΝΗ)],0),3),\"\")","v":""}]
[null,"Επιλέξτε να προστεθεί νέο συμβάν",null,null,{"$f":"'Χρονικά διαστήματα'!E23","v":"11:00:00"},{"$f":"IFERROR(INDEX(Προγραμματισμός_συμβάντων[],MATCH(DATEVALUE(ΤιμήΗμερομηνίας)&Ημερήσιο_πρόγραμμα[[#This Row],[Ώρα]],ΑναζήτησηΗμερομηνίαςΚαιΏρας,0),3),\"\")","v":""},null,null,{"$f":"IFERROR(INDEX(Προγραμματισμός_συμβάντων[],MATCH($H$24&\"|\"&ROW(A3),Προγραμματισμός_συμβάντων[ΜΟΝΑΔΙΚΗ ΤΙΜΗ (ΥΠΟΛΟΓΙΣΜΕΝΗ)],0),2),\"\")","v":""},{"$f":"IFERROR(INDEX(Προγραμματισμός_συμβάντων[],MATCH($H$24&\"|\"&ROW(A3),Προγραμματισμός_συμβάντων[ΜΟΝΑΔΙΚΗ ΤΙΜΗ (ΥΠΟΛΟΓΙΣΜΕΝΗ)],0),3),\"\")","v":""}]
[{"$nulls":4},{"$f":"'Χρονικά διαστήματα'!E24","v":"11:15:00"},{"$f":"IFERROR(INDEX(Προγραμματισμός_συμβάντων[],MATCH(DATEVALUE(ΤιμήΗμερομηνίας)&Ημερήσιο_πρόγραμμα[[#This Row],[Ώρα]],ΑναζήτησηΗμερομηνίαςΚαιΏρας,0),3),\"\")","v":""},null,{"$f":"IFERROR(ΤιμήΗμερομηνίας+4,\"\")","v":""},{"$f":"IFERROR(INDEX(Προγραμματισμός_συμβάντων[],MATCH($H$24&\"|\"&ROW(A4),Προγραμματισμός_συμβάντων[ΜΟΝΑΔΙΚΗ ΤΙΜΗ (ΥΠΟΛΟΓΙΣΜΕΝΗ)],0),2),\"\")","v":""},{"$f":"IFERROR(INDEX(Προγραμματισμός_συμβάντων[],MATCH($H$24&\"|\"&ROW(A4),Προγραμματισμός_συμβάντων[ΜΟΝΑΔΙΚΗ ΤΙΜΗ (ΥΠΟΛΟΓΙΣΜΕΝΗ)],0),3),\"\")","v":""}]
[null,"ΕΠΙΣΗΜΑΝΣΗ ΣΤΟ ΠΡΟΓΡΑΜΜΑ:",null,null,{"$f":"'Χρονικά διαστήματα'!E25","v":"11:30:00"},{"$f":"IFERROR(INDEX(Προγραμματισμός_συμβάντων[],MATCH(DATEVALUE(ΤιμήΗμερομηνίας)&Ημερήσιο_πρόγραμμα[[#This Row],[Ώρα]],ΑναζήτησηΗμερομηνίαςΚαιΏρας,0),3),\"\")","v":""},null,null,{"$f":"IFERROR(INDEX(Προγραμματισμός_συμβάντων[],MATCH($H$24&\"|\"&ROW(A5),Προγραμματισμός_συμβάντων[ΜΟΝΑΔΙΚΗ ΤΙΜΗ (ΥΠΟΛΟΓΙΣΜΕΝΗ)],0),2),\"\")","v":""},{"$f":"IFERROR(INDEX(Προγραμματισμός_συμβάντων[],MATCH($H$24&\"|\"&ROW(A5),Προγραμματισμός_συμβάντων[ΜΟΝΑΔΙΚΗ ΤΙΜΗ (ΥΠΟΛΟΓΙΣΜΕΝΗ)],0),3),\"\")","v":""}]
[null,"Διάλειμμα",null,null,{"$f":"'Χρονικά διαστήματα'!E26","v":"11:45:00"},{"$f":"IFERROR(INDEX(Προγραμματισμός_συμβάντων[],MATCH(DATEVALUE(ΤιμήΗμερομηνίας)&Ημερήσιο_πρόγραμμα[[#This Row],[Ώρα]],ΑναζήτησηΗμερομηνίαςΚαιΏρας,0),3),\"\")","v":""},null,{"$f":"IFERROR(TEXT(DATEVALUE(ΤιμήΗμερομηνίας)+5,\"ηηηη\"),\"\")","v":""},{"$f":"IFERROR(INDEX(Προγραμματισμός_συμβάντων[],MATCH($H$29&\"|\"&ROW(A1),Προγραμματισμός_συμβάντων[ΜΟΝΑΔΙΚΗ ΤΙΜΗ (ΥΠΟΛΟΓΙΣΜΕΝΗ)],0),2),\"\")","v":""},{"$f":"IFERROR(INDEX(Προγραμματισμός_συμβάντων[],MATCH($H$29&\"|\"&ROW(A1),Προγραμματισμός_συμβάντων[ΜΟΝΑΔΙΚΗ ΤΙΜΗ (ΥΠΟΛΟΓΙΣΜΕΝΗ)],0),3),\"\")","v":""}]
[{"$nulls":4},{"$f":"'Χρονικά διαστήματα'!E27","v":"12:00:00"},{"$f":"IFERROR(INDEX(Προγραμματισμός_συμβάντων[],MATCH(DATEVALUE(ΤιμήΗμερομηνίας)&Ημερήσιο_πρόγραμμα[[#This Row],[Ώρα]],ΑναζήτησηΗμερομηνίαςΚαιΏρας,0),3),\"\")","v":""},null,{"$f":"IFERROR(TEXT(DATEVALUE(ΤιμήΗμερομηνίας)+5,\"η\"),\"\")","v":""},{"$f":"IFERROR(INDEX(Προγραμματισμός_συμβάντων[],MATCH($H$29&\"|\"&ROW(A2),Προγραμματισμός_συμβάντων[ΜΟΝΑΔΙΚΗ ΤΙΜΗ (ΥΠΟΛΟΓΙΣΜΕΝΗ)],0),2),\"\")","v":""},{"$f":"IFERROR(INDEX(Προγραμματισμός_συμβάντων[],MATCH($H$29&\"|\"&ROW(A2),Προγραμματισμός_συμβάντων[ΜΟΝΑΔΙΚΗ ΤΙΜΗ (ΥΠΟΛΟΓΙΣΜΕΝΗ)],0),3),\"\")","v":""}]
[{"$nulls":4},{"$f":"'Χρονικά διαστήματα'!E28","v":"12:15:00"},{"$f":"IFERROR(INDEX(Προγραμματισμός_συμβάντων[],MATCH(DATEVALUE(ΤιμήΗμερομηνίας)&Ημερήσιο_πρόγραμμα[[#This Row],[Ώρα]],ΑναζήτησηΗμερομηνίαςΚαιΏρας,0),3),\"\")","v":""},null,null,{"$f":"IFERROR(INDEX(Προγραμματισμός_συμβάντων[],MATCH($H$29&\"|\"&ROW(A3),Προγραμματισμός_συμβάντων[ΜΟΝΑΔΙΚΗ ΤΙΜΗ (ΥΠΟΛΟΓΙΣΜΕΝΗ)],0),2),\"\")","v":""},{"$f":"IFERROR(INDEX(Προγραμματισμός_συμβάντων[],MATCH($H$29&\"|\"&ROW(A3),Προγραμματισμός_συμβάντων[ΜΟΝΑΔΙΚΗ ΤΙΜΗ (ΥΠΟΛΟΓΙΣΜΕΝΗ)],0),3),\"\")","v":""}]
[{"$nulls":4},{"$f":"'Χρονικά διαστήματα'!E29","v":"12:30:00"},{"$f":"IFERROR(INDEX(Προγραμματισμός_συμβάντων[],MATCH(DATEVALUE(ΤιμήΗμερομηνίας)&Ημερήσιο_πρόγραμμα[[#This Row],[Ώρα]],ΑναζήτησηΗμερομηνίαςΚαιΏρας,0),3),\"\")","v":""},null,{"$f":"IFERROR(ΤιμήΗμερομηνίας+5,\"\")","v":""},{"$f":"IFERROR(INDEX(Προγραμματισμός_συμβάντων[],MATCH($H$29&\"|\"&ROW(A4),Προγραμματισμός_συμβάντων[ΜΟΝΑΔΙΚΗ ΤΙΜΗ (ΥΠΟΛΟΓΙΣΜΕΝΗ)],0),2),\"\")","v":""},{"$f":"IFERROR(INDEX(Προγραμματισμός_συμβάντων[],MATCH($H$29&\"|\"&ROW(A4),Προγραμματισμός_συμβάντων[ΜΟΝΑΔΙΚΗ ΤΙΜΗ (ΥΠΟΛΟΓΙΣΜΕΝΗ)],0),3),\"\")","v":""}]
[{"$nulls":4},{"$f":"'Χρονικά διαστήματα'!E30","v":"12:45:00"},{"$f":"IFERROR(INDEX(Προγραμματισμός_συμβάντων[],MATCH(DATEVALUE(ΤιμήΗμερομηνίας)&Ημερήσιο_πρόγραμμα[[#This Row],[Ώρα]],ΑναζήτησηΗμερομηνίαςΚαιΏρας,0),3),\"\")","v":""},null,null,{"$f":"IFERROR(INDEX(Προγραμματισμός_συμβάντων[],MATCH($H$29&\"|\"&ROW(A5),Προγραμματισμός_συμβάντων[ΜΟΝΑΔΙΚΗ ΤΙΜΗ (ΥΠΟΛΟΓΙΣΜΕΝΗ)],0),2),\"\")","v":""},{"$f":"IFERROR(INDEX(Προγραμματισμός_συμβάντων[],MATCH($H$29&\"|\"&ROW(A5),Προγραμματισμός_συμβάντων[ΜΟΝΑΔΙΚΗ ΤΙΜΗ (ΥΠΟΛΟΓΙΣΜΕΝΗ)],0),3),\"\")","v":""}]
[{"$nulls":4},{"$f":"'Χρονικά διαστήματα'!E31","v":"13:00:00"},{"$f":"IFERROR(INDEX(Προγραμματισμός_συμβάντων[],MATCH(DATEVALUE(ΤιμήΗμερομηνίας)&Ημερήσιο_πρόγραμμα[[#This Row],[Ώρα]],ΑναζήτησηΗμερομηνίαςΚαιΏρας,0),3),\"\")","v":""},null,{"$f":"IFERROR(TEXT(DATEVALUE(ΤιμήΗμερομηνίας)+6,\"ηηηη\"),\"\")","v":""},{"$f":"IFERROR(INDEX(Προγραμματισμός_συμβάντων[],MATCH($H$34&\"|\"&ROW(A1),Προγραμματισμός_συμβάντων[ΜΟΝΑΔΙΚΗ ΤΙΜΗ (ΥΠΟΛΟΓΙΣΜΕΝΗ)],0),2),\"\")","v":""},{"$f":"IFERROR(INDEX(Προγραμματισμός_συμβάντων[],MATCH($H$34&\"|\"&ROW(A1),Προγραμματισμός_συμβάντων[ΜΟΝΑΔΙΚΗ ΤΙΜΗ (ΥΠΟΛΟΓΙΣΜΕΝΗ)],0),3),\"\")","v":""}]
[{"$nulls":4},{"$f":"'Χρονικά διαστήματα'!E32","v":"13:15:00"},{"$f":"IFERROR(INDEX(Προγραμματισμός_συμβάντων[],MATCH(DATEVALUE(ΤιμήΗμερομηνίας)&Ημερήσιο_πρόγραμμα[[#This Row],[Ώρα]],ΑναζήτησηΗμερομηνίαςΚαιΏρας,0),3),\"\")","v":""},null,{"$f":"IFERROR(TEXT(DATEVALUE(ΤιμήΗμερομηνίας)+6,\"η\"),\"\")","v":""},{"$f":"IFERROR(INDEX(Προγραμματισμός_συμβάντων[],MATCH($H$34&\"|\"&ROW(A2),Προγραμματισμός_συμβάντων[ΜΟΝΑΔΙΚΗ ΤΙΜΗ (ΥΠΟΛΟΓΙΣΜΕΝΗ)],0),2),\"\")","v":""},{"$f":"IFERROR(INDEX(Προγραμματισμός_συμβάντων[],MATCH($H$34&\"|\"&ROW(A2),Προγραμματισμός_συμβάντων[ΜΟΝΑΔΙΚΗ ΤΙΜΗ (ΥΠΟΛΟΓΙΣΜΕΝΗ)],0),3),\"\")","v":""}]
[{"$nulls":4},{"$f":"'Χρονικά διαστήματα'!E33","v":"13:30:00"},{"$f":"IFERROR(INDEX(Προγραμματισμός_συμβάντων[],MATCH(DATEVALUE(ΤιμήΗμερομηνίας)&Ημερήσιο_πρόγραμμα[[#This Row],[Ώρα]],ΑναζήτησηΗμερομηνίαςΚαιΏρας,0),3),\"\")","v":""},null,null,{"$f":"IFERROR(INDEX(Προγραμματισμός_συμβάντων[],MATCH($H$34&\"|\"&ROW(A3),Προγραμματισμός_συμβάντων[ΜΟΝΑΔΙΚΗ ΤΙΜΗ (ΥΠΟΛΟΓΙΣΜΕΝΗ)],0),2),\"\")","v":""},{"$f":"IFERROR(INDEX(Προγραμματισμός_συμβάντων[],MATCH($H$34&\"|\"&ROW(A3),Προγραμματισμός_συμβάντων[ΜΟΝΑΔΙΚΗ ΤΙΜΗ (ΥΠΟΛΟΓΙΣΜΕΝΗ)],0),3),\"\")","v":""}]
[{"$nulls":4},{"$f":"'Χρονικά διαστήματα'!E34","v":"13:45:00"},{"$f":"IFERROR(INDEX(Προγραμματισμός_συμβάντων[],MATCH(DATEVALUE(ΤιμήΗμερομηνίας)&Ημερήσιο_πρόγραμμα[[#This Row],[Ώρα]],ΑναζήτησηΗμερομηνίαςΚαιΏρας,0),3),\"\")","v":""},null,{"$f":"IFERROR(ΤιμήΗμερομηνίας+6,\"\")","v":""},{"$f":"IFERROR(INDEX(Προγραμματισμός_συμβάντων[],MATCH($H$34&\"|\"&ROW(A4),Προγραμματισμός_συμβάντων[ΜΟΝΑΔΙΚΗ ΤΙΜΗ (ΥΠΟΛΟΓΙΣΜΕΝΗ)],0),2),\"\")","v":""},{"$f":"IFERROR(INDEX(Προγραμματισμός_συμβάντων[],MATCH($H$34&\"|\"&ROW(A4),Προγραμματισμός_συμβάντων[ΜΟΝΑΔΙΚΗ ΤΙΜΗ (ΥΠΟΛΟΓΙΣΜΕΝΗ)],0),3),\"\")","v":""}]
[{"$nulls":4},{"$f":"'Χρονικά διαστήματα'!E35","v":"14:00:00"},{"$f":"IFERROR(INDEX(Προγραμματισμός_συμβάντων[],MATCH(DATEVALUE(ΤιμήΗμερομηνίας)&Ημερήσιο_πρόγραμμα[[#This Row],[Ώρα]],ΑναζήτησηΗμερομηνίαςΚαιΏρας,0),3),\"\")","v":""},null,null,{"$f":"IFERROR(INDEX(Προγραμματισμός_συμβάντων[],MATCH($H$34&\"|\"&ROW(A5),Προγραμματισμός_συμβάντων[ΜΟΝΑΔΙΚΗ ΤΙΜΗ (ΥΠΟΛΟΓΙΣΜΕΝΗ)],0),2),\"\")","v":""},{"$f":"IFERROR(INDEX(Προγραμματισμός_συμβάντων[],MATCH($H$34&\"|\"&ROW(A5),Προγραμματισμός_συμβάντων[ΜΟΝΑΔΙΚΗ ΤΙΜΗ (ΥΠΟΛΟΓΙΣΜΕΝΗ)],0),3),\"\")","v":""}]
[{"$nulls":4},{"$f":"'Χρονικά διαστήματα'!E36","v":"14:15:00"},{"$f":"IFERROR(INDEX(Προγραμματισμός_συμβάντων[],MATCH(DATEVALUE(ΤιμήΗμερομηνίας)&Ημερήσιο_πρόγραμμα[[#This Row],[Ώρα]],ΑναζήτησηΗμερομηνίαςΚαιΏρας,0),3),\"\")","v":""}]
[{"$nulls":4},{"$f":"'Χρονικά διαστήματα'!E37","v":"14:30:00"},{"$f":"IFERROR(INDEX(Προγραμματισμός_συμβάντων[],MATCH(DATEVALUE(ΤιμήΗμερομηνίας)&Ημερήσιο_πρόγραμμα[[#This Row],[Ώρα]],ΑναζήτησηΗμερομηνίαςΚαιΏρας,0),3),\"\")","v":""}]
[{"$nulls":4},{"$f":"'Χρονικά διαστήματα'!E38","v":"14:45:00"},{"$f":"IFERROR(INDEX(Προγραμματισμός_συμβάντων[],MATCH(DATEVALUE(ΤιμήΗμερομηνίας)&Ημερήσιο_πρόγραμμα[[#This Row],[Ώρα]],ΑναζήτησηΗμερομηνίαςΚαιΏρας,0),3),\"\")","v":""}]
[{"$nulls":4},{"$f":"'Χρονικά διαστήματα'!E39","v":"15:00:00"},{"$f":"IFERROR(INDEX(Προγραμματισμός_συμβάντων[],MATCH(DATEVALUE(ΤιμήΗμερομηνίας)&Ημερήσιο_πρόγραμμα[[#This Row],[Ώρα]],ΑναζήτησηΗμερομηνίαςΚαιΏρας,0),3),\"\")","v":""}]
[{"$nulls":4},{"$f":"'Χρονικά διαστήματα'!E40","v":"15:15:00"},{"$f":"IFERROR(INDEX(Προγραμματισμός_συμβάντων[],MATCH(DATEVALUE(ΤιμήΗμερομηνίας)&Ημερήσιο_πρόγραμμα[[#This Row],[Ώρα]],ΑναζήτησηΗμερομηνίαςΚαιΏρας,0),3),\"\")","v":""}]
[{"$nulls":4},{"$f":"'Χρονικά διαστήματα'!E41","v":"15:30:00"},{"$f":"IFERROR(INDEX(Προγραμματισμός_συμβάντων[],MATCH(DATEVALUE(ΤιμήΗμερομηνίας)&Ημερήσιο_πρόγραμμα[[#This Row],[Ώρα]],ΑναζήτησηΗμερομηνίαςΚαιΏρας,0),3),\"\")","v":""}]
[{"$nulls":4},{"$f":"'Χρονικά διαστήματα'!E42","v":"15:45:00"},{"$f":"IFERROR(INDEX(Προγραμματισμός_συμβάντων[],MATCH(DATEVALUE(ΤιμήΗμερομηνίας)&Ημερήσιο_πρόγραμμα[[#This Row],[Ώρα]],ΑναζήτησηΗμερομηνίαςΚαιΏρας,0),3),\"\")","v":""}]
[{"$nulls":4},{"$f":"'Χρονικά διαστήματα'!E43","v":"16:00:00"},{"$f":"IFERROR(INDEX(Προγραμματισμός_συμβάντων[],MATCH(DATEVALUE(ΤιμήΗμερομηνίας)&Ημερήσιο_πρόγραμμα[[#This Row],[Ώρα]],ΑναζήτησηΗμερομηνίαςΚαιΏρας,0),3),\"\")","v":""}]
[{"$nulls":4},{"$f":"'Χρονικά διαστήματα'!E44","v":"16:15:00"},{"$f":"IFERROR(INDEX(Προγραμματισμός_συμβάντων[],MATCH(DATEVALUE(ΤιμήΗμερομηνίας)&Ημερήσιο_πρόγραμμα[[#This Row],[Ώρα]],ΑναζήτησηΗμερομηνίαςΚαιΏρας,0),3),\"\")","v":""}]
[{"$nulls":4},{"$f":"'Χρονικά διαστήματα'!E45","v":"16:30:00"},{"$f":"IFERROR(INDEX(Προγραμματισμός_συμβάντων[],MATCH(DATEVALUE(ΤιμήΗμερομηνίας)&Ημερήσιο_πρόγραμμα[[#This Row],[Ώρα]],ΑναζήτησηΗμερομηνίαςΚαιΏρας,0),3),\"\")","v":""}]
[{"$nulls":4},{"$f":"'Χρονικά διαστήματα'!E46","v":"16:45:00"},{"$f":"IFERROR(INDEX(Προγραμματισμός_συμβάντων[],MATCH(DATEVALUE(ΤιμήΗμερομηνίας)&Ημερήσιο_πρόγραμμα[[#This Row],[Ώρα]],ΑναζήτησηΗμερομηνίαςΚαιΏρας,0),3),\"\")","v":""}]
[{"$nulls":4},{"$f":"'Χρονικά διαστήματα'!E47","v":"17:00:00"},{"$f":"IFERROR(INDEX(Προγραμματισμός_συμβάντων[],MATCH(DATEVALUE(ΤιμήΗμερομηνίας)&Ημερήσιο_πρόγραμμα[[#This Row],[Ώρα]],ΑναζήτησηΗμερομηνίαςΚαιΏρας,0),3),\"\")","v":""}]
[{"$nulls":4},{"$f":"'Χρονικά διαστήματα'!E48","v":"17:15:00"},{"$f":"IFERROR(INDEX(Προγραμματισμός_συμβάντων[],MATCH(DATEVALUE(ΤιμήΗμερομηνίας)&Ημερήσιο_πρόγραμμα[[#This Row],[Ώρα]],ΑναζήτησηΗμερομηνίαςΚαιΏρας,0),3),\"\")","v":""}]
[{"$nulls":4},{"$f":"'Χρονικά διαστήματα'!E49","v":"17:30:00"},{"$f":"IFERROR(INDEX(Προγραμματισμός_συμβάντων[],MATCH(DATEVALUE(ΤιμήΗμερομηνίας)&Ημερήσιο_πρόγραμμα[[#This Row],[Ώρα]],ΑναζήτησηΗμερομηνίαςΚαιΏρας,0),3),\"\")","v":""}]
[{"$nulls":4},{"$f":"'Χρονικά διαστήματα'!E50","v":"17:45:00"},{"$f":"IFERROR(INDEX(Προγραμματισμός_συμβάντων[],MATCH(DATEVALUE(ΤιμήΗμερομηνίας)&Ημερήσιο_πρόγραμμα[[#This Row],[Ώρα]],ΑναζήτησηΗμερομηνίαςΚαιΏρας,0),3),\"\")","v":""}]
[{"$nulls":4},{"$f":"'Χρονικά διαστήματα'!E51","v":"18:00:00"},{"$f":"IFERROR(INDEX(Προγραμματισμός_συμβάντων[],MATCH(DATEVALUE(ΤιμήΗμερομηνίας)&Ημερήσιο_πρόγραμμα[[#This Row],[Ώρα]],ΑναζήτησηΗμερομηνίαςΚαιΏρας,0),3),\"\")","v":""}]
[{"$nulls":4},{"$f":"'Χρονικά διαστήματα'!E52","v":"18:15:00"},{"$f":"IFERROR(INDEX(Προγραμματισμός_συμβάντων[],MATCH(DATEVALUE(ΤιμήΗμερομηνίας)&Ημερήσιο_πρόγραμμα[[#This Row],[Ώρα]],ΑναζήτησηΗμερομηνίαςΚαιΏρας,0),3),\"\")","v":""}]
[{"$nulls":4},{"$f":"'Χρονικά διαστήματα'!E53","v":"18:30:00"},{"$f":"IFERROR(INDEX(Προγραμματισμός_συμβάντων[],MATCH(DATEVALUE(ΤιμήΗμερομηνίας)&Ημερήσιο_πρόγραμμα[[#This Row],[Ώρα]],ΑναζήτησηΗμερομηνίαςΚαιΏρας,0),3),\"\")","v":""}]
[{"$nulls":4},{"$f":"'Χρονικά διαστήματα'!E54","v":"18:45:00"},{"$f":"IFERROR(INDEX(Προγραμματισμός_συμβάντων[],MATCH(DATEVALUE(ΤιμήΗμερομηνίας)&Ημερήσιο_πρόγραμμα[[#This Row],[Ώρα]],ΑναζήτησηΗμερομηνίαςΚαιΏρας,0),3),\"\")","v":""}]
[{"$nulls":4},{"$f":"'Χρονικά διαστήματα'!E55","v":"19:00:00"},{"$f":"IFERROR(INDEX(Προγραμματισμός_συμβάντων[],MATCH(DATEVALUE(ΤιμήΗμερομηνίας)&Ημερήσιο_πρόγραμμα[[#This Row],[Ώρα]],ΑναζήτησηΗμερομηνίαςΚαιΏρας,0),3),\"\")","v":""}]
[{"$nulls":4},{"$f":"'Χρονικά διαστήματα'!E56","v":"19:15:00"},{"$f":"IFERROR(INDEX(Προγραμματισμός_συμβάντων[],MATCH(DATEVALUE(ΤιμήΗμερομηνίας)&Ημερήσιο_πρόγραμμα[[#This Row],[Ώρα]],ΑναζήτησηΗμερομηνίαςΚαιΏρας,0),3),\"\")","v":""}]
[{"$nulls":4},{"$f":"'Χρονικά διαστήματα'!E57","v":"19:30:00"},{"$f":"IFERROR(INDEX(Προγραμματισμός_συμβάντων[],MATCH(DATEVALUE(ΤιμήΗμερομηνίας)&Ημερήσιο_πρόγραμμα[[#This Row],[Ώρα]],ΑναζήτησηΗμερομηνίαςΚαιΏρας,0),3),\"\")","v":""}]
[{"$nulls":4},{"$f":"'Χρονικά διαστήματα'!E58","v":"19:45:00"},{"$f":"IFERROR(INDEX(Προγραμματισμός_συμβάντων[],MATCH(DATEVALUE(ΤιμήΗμερομηνίας)&Ημερήσιο_πρόγραμμα[[#This Row],[Ώρα]],ΑναζήτησηΗμερομηνίαςΚαιΏρας,0),3),\"\")","v":""}]
[{"$nulls":4},{"$f":"'Χρονικά διαστήματα'!E59","v":"20:00:00"},{"$f":"IFERROR(INDEX(Προγραμματισμός_συμβάντων[],MATCH(DATEVALUE(ΤιμήΗμερομηνίας)&Ημερήσιο_πρόγραμμα[[#This Row],[Ώρα]],ΑναζήτησηΗμερομηνίαςΚαιΏρας,0),3),\"\")","v":""}]
[{"$nulls":4},{"$f":"'Χρονικά διαστήματα'!E60","v":"20:15:00"},{"$f":"IFERROR(INDEX(Προγραμματισμός_συμβάντων[],MATCH(DATEVALUE(ΤιμήΗμερομηνίας)&Ημερήσιο_πρόγραμμα[[#This Row],[Ώρα]],ΑναζήτησηΗμερομηνίαςΚαιΏρας,0),3),\"\")","v":""}]
[{"$nulls":4},{"$f":"'Χρονικά διαστήματα'!E61","v":"20:30:00"},{"$f":"IFERROR(INDEX(Προγραμματισμός_συμβάντων[],MATCH(DATEVALUE(ΤιμήΗμερομηνίας)&Ημερήσιο_πρόγραμμα[[#This Row],[Ώρα]],ΑναζήτησηΗμερομηνίαςΚαιΏρας,0),3),\"\")","v":""}]
[{"$nulls":4},{"$f":"'Χρονικά διαστήματα'!E62","v":"20:45:00"},{"$f":"IFERROR(INDEX(Προγραμματισμός_συμβάντων[],MATCH(DATEVALUE(ΤιμήΗμερομηνίας)&Ημερήσιο_πρόγραμμα[[#This Row],[Ώρα]],ΑναζήτησηΗμερομηνίαςΚαιΏρας,0),3),\"\")","v":""}]
[{"$nulls":4},{"$f":"'Χρονικά διαστήματα'!E63","v":"21:00:00"},{"$f":"IFERROR(INDEX(Προγραμματισμός_συμβάντων[],MATCH(DATEVALUE(ΤιμήΗμερομηνίας)&Ημερήσιο_πρόγραμμα[[#This Row],[Ώρα]],ΑναζήτησηΗμερομηνίαςΚαιΏρας,0),3),\"\")","v":""}]
[{"$nulls":4},{"$f":"'Χρονικά διαστήματα'!E64","v":""},{"$f":"IFERROR(INDEX(Προγραμματισμός_συμβάντων[],MATCH(DATEVALUE(ΤιμήΗμερομηνίας)&Ημερήσιο_πρόγραμμα[[#This Row],[Ώρα]],ΑναζήτησηΗμερομηνίαςΚαιΏρας,0),3),\"\")","v":""}]
[{"$nulls":4},{"$f":"'Χρονικά διαστήματα'!E65","v":""},{"$f":"IFERROR(INDEX(Προγραμματισμός_συμβάντων[],MATCH(DATEVALUE(ΤιμήΗμερομηνίας)&Ημερήσιο_πρόγραμμα[[#This Row],[Ώρα]],ΑναζήτησηΗμερομηνίαςΚαιΏρας,0),3),\"\")","v":""}]
[{"$nulls":4},{"$f":"'Χρονικά διαστήματα'!E66","v":""},{"$f":"IFERROR(INDEX(Προγραμματισμός_συμβάντων[],MATCH(DATEVALUE(ΤιμήΗμερομηνίας)&Ημερήσιο_πρόγραμμα[[#This Row],[Ώρα]],ΑναζήτησηΗμερομηνίαςΚαιΏρας,0),3),\"\")","v":""}]
[{"$nulls":4},{"$f":"'Χρονικά διαστήματα'!E67","v":""},{"$f":"IFERROR(INDEX(Προγραμματισμός_συμβάντων[],MATCH(DATEVALUE(ΤιμήΗμερομηνίας)&Ημερήσιο_πρόγραμμα[[#This Row],[Ώρα]],ΑναζήτησηΗμερομηνίαςΚαιΏρας,0),3),\"\")","v":""}]
[{"$nulls":4},{"$f":"'Χρονικά διαστήματα'!E68","v":""},{"$f":"IFERROR(INDEX(Προγραμματισμός_συμβάντων[],MATCH(DATEVALUE(ΤιμήΗμερομηνίας)&Ημερήσιο_πρόγραμμα[[#This Row],[Ώρα]],ΑναζήτησηΗμερομηνίαςΚαιΏρας,0),3),\"\")","v":""}]
[{"$nulls":4},{"$f":"'Χρονικά διαστήματα'!E69","v":""},{"$f":"IFERROR(INDEX(Προγραμματισμός_συμβάντων[],MATCH(DATEVALUE(ΤιμήΗμερομηνίας)&Ημερήσιο_πρόγραμμα[[#This Row],[Ώρα]],ΑναζήτησηΗμερομηνίαςΚαιΏρας,0),3),\"\")","v":""}]
[{"$nulls":4},{"$f":"'Χρονικά διαστήματα'!E70","v":""},{"$f":"IFERROR(INDEX(Προγραμματισμός_συμβάντων[],MATCH(DATEVALUE(ΤιμήΗμερομηνίας)&Ημερήσιο_πρόγραμμα[[#This Row],[Ώρα]],ΑναζήτησηΗμερομηνίαςΚαιΏρας,0),3),\"\")","v":""}]
[{"$nulls":4},{"$f":"'Χρονικά διαστήματα'!E71","v":""},{"$f":"IFERROR(INDEX(Προγραμματισμός_συμβάντων[],MATCH(DATEVALUE(ΤιμήΗμερομηνίας)&Ημερήσιο_πρόγραμμα[[#This Row],[Ώρα]],ΑναζήτησηΗμερομηνίαςΚαιΏρας,0),3),\"\")","v":""}]
[{"$nulls":4},{"$f":"'Χρονικά διαστήματα'!E72","v":""},{"$f":"IFERROR(INDEX(Προγραμματισμός_συμβάντων[],MATCH(DATEVALUE(ΤιμήΗμερομηνίας)&Ημερήσιο_πρόγραμμα[[#This Row],[Ώρα]],ΑναζήτησηΗμερομηνίαςΚαιΏρας,0),3),\"\")","v":""}]
[{"$nulls":4},{"$f":"'Χρονικά διαστήματα'!E73","v":""},{"$f":"IFERROR(INDEX(Προγραμματισμός_συμβάντων[],MATCH(DATEVALUE(ΤιμήΗμερομηνίας)&Ημερήσιο_πρόγραμμα[[#This Row],[Ώρα]],ΑναζήτησηΗμερομηνίαςΚαιΏρας,0),3),\"\")","v":""}]
[{"$nulls":4},{"$f":"'Χρονικά διαστήματα'!E74","v":""},{"$f":"IFERROR(INDEX(Προγραμματισμός_συμβάντων[],MATCH(DATEVALUE(ΤιμήΗμερομηνίας)&Ημερήσιο_πρόγραμμα[[#This Row],[Ώρα]],ΑναζήτησηΗμερομηνίαςΚαιΏρας,0),3),\"\")","v":""}]
[{"$nulls":4},{"$f":"'Χρονικά διαστήματα'!E75","v":""},{"$f":"IFERROR(INDEX(Προγραμματισμός_συμβάντων[],MATCH(DATEVALUE(ΤιμήΗμερομηνίας)&Ημερήσιο_πρόγραμμα[[#This Row],[Ώρα]],ΑναζήτησηΗμερομηνίαςΚαιΏρας,0),3),\"\")","v":""}]

{"sheet":"Προγραμματισμός συμβάντων","index":1,"n_rows":15,"n_cols":8,"rows_kept":15,"merged":[[1,1,4,2],[5,1,6,2],[7,1,7,2]]}
[null,"Προγραμματισμός συμβάντων"]
[null,{"$f":"DAY(ΤιμήΗμερομηνίας)","v":{"$error":"#VALUE!"}},null,null,"ΗΜΕΡΟΜΗΝΙΑ","ΩΡΑ","ΠΕΡΙΓΡΑΦΗ","ΜΟΝΑΔΙΚΗ ΤΙΜΗ (ΥΠΟΛΟΓΙΣΜΕΝΗ)"]
[{"$nulls":4},{"$f":"TODAY()","v":"2019-09-06"},"06:00:00","Αφύπνιση",{"$f":"Προγραμματισμός_συμβάντων[[#This Row],[ΗΜΕΡΟΜΗΝΙΑ]]&\"|\"&COUNTIF($E$3:E3,E3)","v":"43714|1"}]
[{"$nulls":4},{"$f":"TODAY()","v":"2019-09-06"},"06:30:00","Ντους",{"$f":"Προγραμματισμός_συμβάντων[[#This Row],[ΗΜΕΡΟΜΗΝΙΑ]]&\"|\"&COUNTIF($E$3:E4,E4)","v":"43714|2"}]
[{"$nulls":4},"2019-09-06","07:30:00","Αναχώρηση για τη δουλειά",{"$f":"Προγραμματισμός_συμβάντων[[#This Row],[ΗΜΕΡΟΜΗΝΙΑ]]&\"|\"&COUNTIF($E$3:E5,E5)","v":"43714|3"}]
[null,{"$f":"TEXT(ΤιμήΗμερομηνίας,\"ηηηη\")","v":""},null,null,"2019-09-06","08:00:00","Έναρξη βάρδιας",{"$f":"Προγραμματισμός_συμβάντων[[#This Row],[ΗΜΕΡΟΜΗΝΙΑ]]&\"|\"&COUNTIF($E$3:E6,E6)","v":"43714|4"}]
[{"$nulls":4},"2019-09-06","10:00:00","Διάλειμμα",{"$f":"Προγραμματισμός_συμβάντων[[#This Row],[ΗΜΕΡΟΜΗΝΙΑ]]&\"|\"&COUNTIF($E$3:E7,E7)","v":"43714|5"}]
[null,{"$f":"ΤιμήΗμερομηνίας","v":""},null,null,"2019-09-06","12:00:00","Μεσημεριανό",{"$f":"Προγραμματισμός_συμβάντων[[#This Row],[ΗΜΕΡΟΜΗΝΙΑ]]&\"|\"&COUNTIF($E$3:E8,E8)","v":"43714|6"}]
[{"$nulls":4},"2019-09-06","13:00:00","Επιστροφή στη δουλειά",{"$f":"Προγραμματισμός_συμβάντων[[#This Row],[ΗΜΕΡΟΜΗΝΙΑ]]&\"|\"&COUNTIF($E$3:E9,E9)","v":"43714|7"}]
[null,"Επιλέξτε να γίνει επεξεργασία των χρονικών διαστημάτων",null,null,"2019-09-06","13:30:00","Τηλεφώνημα στην εταιρεία",{"$f":"Προγραμματισμός_συμβάντων[[#This Row],[ΗΜΕΡΟΜΗΝΙΑ]]&\"|\"&COUNTIF($E$3:E10,E10)","v":"43714|8"}]
[{"$nulls":4},"2019-09-06","15:00:00","Διάλειμμα",{"$f":"Προγραμματισμός_συμβάντων[[#This Row],[ΗΜΕΡΟΜΗΝΙΑ]]&\"|\"&COUNTIF($E$3:E11,E11)","v":"43714|9"}]
[null,"Επιλέξτε να γίνει προβολή του ημερήσιου προγράμματος",null,null,"2019-09-06","17:00:00","Σπίτι",{"$f":"Προγραμματισμός_συμβάντων[[#This Row],[ΗΜΕΡΟΜΗΝΙΑ]]&\"|\"&COUNTIF($E$3:E12,E12)","v":"43714|10"}]
[{"$nulls":4},"2019-09-06","18:00:00","Προπόνηση ποδόσφαιρο",{"$f":"Προγραμματισμός_συμβάντων[[#This Row],[ΗΜΕΡΟΜΗΝΙΑ]]&\"|\"&COUNTIF($E$3:E13,E13)","v":"43714|11"}]
[{"$nulls":4},{"$f":"TODAY()+1","v":"2019-09-07"},"06:30:00","Πρωινό",{"$f":"Προγραμματισμός_συμβάντων[[#This Row],[ΗΜΕΡΟΜΗΝΙΑ]]&\"|\"&COUNTIF($E$3:E14,E14)","v":"43715|1"}]
[{"$nulls":4},{"$f":"TODAY()+1","v":"2019-09-07"},"07:30:00","Αναχώρηση για τη δουλειά",{"$f":"Προγραμματισμός_συμβάντων[[#This Row],[ΗΜΕΡΟΜΗΝΙΑ]]&\"|\"&COUNTIF($E$3:E15,E15)","v":"43715|2"}]

{"sheet":"Χρονικά διαστήματα","index":2,"n_rows":75,"n_cols":5,"rows_kept":75,"merged":[[1,1,1,2],[9,1,9,2]]}
[null,"Χρονικά διαστήματα"]
[null,"ΕΠΕΞΕΡΓΑΣΙΑ ΠΙΝΑΚΑ ΩΡΩΝ",null,null,"Ώρα"]
[{"$nulls":4},{"$f":"Ώρα_έναρξης","v":"06:00:00"}]
[null,"Ώρα έναρξης","06:00:00",null,{"$f":"IFERROR(IF($E3+Προσαύξηση>ΏραΛήξης,\"\",$E3+Προσαύξηση),\"\")","v":"06:15:00"}]
[{"$nulls":4},"06:30:00"]
[null,"Διάστημα","15 ΛΕΠΤΑ",null,"06:45:00"]
[{"$nulls":4},"07:00:00"]
[null,"Ώρα λήξης","21:00:00",null,"07:15:00"]
[{"$nulls":4},"07:30:00"]
[null,"ΠΡΟΒΟΛΗ ΠΡΟΓΡΑΜΜΑΤΟΣ",null,null,"07:45:00"]
[{"$nulls":4},"08:00:00"]
[null,"Επιλέξτε να γίνει προβολή του ημερήσιου προγράμματος",null,null,"08:15:00"]
[{"$nulls":4},"08:30:00"]
[null,"Επιλέξτε να προστεθεί νέο συμβάν",null,null,"08:45:00"]
[{"$nulls":4},"09:00:00"]
[{"$nulls":4},"09:15:00"]
[{"$nulls":4},"09:30:00"]
[{"$nulls":4},"09:45:00"]
[{"$nulls":4},"10:00:00"]
[{"$nulls":4},"10:15:00"]
[{"$nulls":4},"10:30:00"]
[{"$nulls":4},"10:45:00"]
[{"$nulls":4},"11:00:00"]
[{"$nulls":4},"11:15:00"]
[{"$nulls":4},"11:30:00"]
[{"$nulls":4},"11:45:00"]
[{"$nulls":4},"12:00:00"]
[{"$nulls":4},"12:15:00"]
[{"$nulls":4},"12:30:00"]
[{"$nulls":4},"12:45:00"]
[{"$nulls":4},"13:00:00"]
[{"$nulls":4},"13:15:00"]
[{"$nulls":4},"13:30:00"]
[{"$nulls":4},"13:45:00"]
[{"$nulls":4},"14:00:00"]
[{"$nulls":4},{"$f":"IFERROR(IF($E35+Προσαύξηση>ΏραΛήξης,\"\",$E35+Προσαύξηση),\"\")","v":"14:15:00"}]
[{"$nulls":4},"14:30:00"]
[{"$nulls":4},"14:45:00"]
[{"$nulls":4},"15:00:00"]
[{"$nulls":4},"15:15:00"]
[{"$nulls":4},"15:30:00"]
[{"$nulls":4},"15:45:00"]
[{"$nulls":4},"16:00:00"]
[{"$nulls":4},"16:15:00"]
[{"$nulls":4},"16:30:00"]
[{"$nulls":4},"16:45:00"]
[{"$nulls":4},"17:00:00"]
[{"$nulls":4},"17:15:00"]
[{"$nulls":4},"17:30:00"]
[{"$nulls":4},"17:45:00"]
[{"$nulls":4},"18:00:00"]
[{"$nulls":4},"18:15:00"]
[{"$nulls":4},"18:30:00"]
[{"$nulls":4},"18:45:00"]
[{"$nulls":4},"19:00:00"]
[{"$nulls":4},"19:15:00"]
[{"$nulls":4},"19:30:00"]
[{"$nulls":4},"19:45:00"]
[{"$nulls":4},"20:00:00"]
[{"$nulls":4},"20:15:00"]
[{"$nulls":4},"20:30:00"]
[{"$nulls":4},"20:45:00"]
[{"$nulls":4},"21:00:00"]
[{"$nulls":4},""]
[{"$nulls":4},""]
[{"$nulls":4},""]
[{"$nulls":4},""]
[{"$nulls":4},{"$f":"IFERROR(IF($E67+Προσαύξηση>ΏραΛήξης,\"\",$E67+Προσαύξηση),\"\")","v":""}]
[{"$nulls":4},""]
[{"$nulls":4},""]
[{"$nulls":4},""]
[{"$nulls":4},""]
[{"$nulls":4},""]
[{"$nulls":4},""]
[{"$nulls":4},""]